bitfinex-derivatives/quotes_BTCF0:USTF0_20241029
["timestamp","ask_amount","ask_price","bid_price","bid_amount"]
[1730237433649,0.069022,72452.0,72450.0,0.069023]
[1730237433945,0.0064,72454.0,72453.0,0.069019]
[1730237433946,0.069019,72454.0,72453.0,0.069019]
[1730237434245,0.069019,72454.0,72453.0,0.30015778]
[1730237434641,1.5,72454.0,72453.0,0.10521408]
[1730237434833,1.5,72454.0,72453.0,0.17423408]
[1730237435639,1.569019,72454.0,72453.0,0.17423408]
[1730237436139,1.569019,72454.0,72453.0,0.2563543]
[1730237437240,1.5,72454.0,72453.0,1.19585668]
[1730237437446,1.5,72454.0,72453.0,1.10890987]
[1730237437644,0.069013,72461.0,72456.0,0.069016]
[1730237437835,0.069013,72461.0,72457.0,0.26117689]
[1730237438142,1.5,72460.0,72458.0,0.10521408]
[1730237438342,1.5,72460.0,72459.0,0.10521408]
[1730237438732,1.5,72460.0,72459.0,0.10518573]
[1730237439136,1.5,72460.0,72459.0,0.17419973]
[1730237439842,1.5,72460.0,72459.0,0.069014]
[1730237443532,1.5,72460.0,72453.0,0.38370132]
[1730237443533,0.069014,72459.0,72455.0,0.069018]
[1730237443847,0.069014,72459.0,72457.0,0.08694681]
[1730237444247,1.5,72458.0,72457.0,0.08694681]
[1730237445343,1.569015,72458.0,72457.0,0.08694681]
[1730237447751,1.569015,72458.0,72453.0,0.02290132]
[1730237447752,0.069019,72454.0,72453.0,0.02290132]
[1730237447948,0.069027,72446.0,72445.0,0.0683603]
[1730237448144,0.44774681,72454.0,72439.0,0.17777507]
[1730237448145,0.3608,72447.0,72441.0,0.1373913]
[1730237448355,0.069031,72442.0,72441.0,0.069031]
[1730237448548,0.069031,72442.0,72441.0,0.22032578]
[1730237449151,0.069031,72442.0,72441.0,0.30727259]
[1730237449341,0.069031,72442.0,72441.0,0.33074321]
[1730237454851,0.3608,72447.0,72441.0,0.51805206]
[1730237455054,0.429826,72447.0,72446.0,0.08694681]
[1730237455359,0.429826,72447.0,72446.0,0.05531378]
[1730237455563,0.429826,72447.0,72446.0,0.08694681]
[1730237458251,0.429826,72447.0,72445.0,0.06841241]
[1730237458252,0.069027,72446.0,72445.0,0.06841241]
[1730237458451,0.069027,72446.0,72445.0,0.15535922]
[1730237461357,0.069027,72446.0,72445.0,0.08694681]
[1730237461662,0.069027,72446.0,72445.0,0.15535922]
[1730237462057,0.069027,72446.0,72445.0,0.08694681]
[1730237462265,0.069027,72446.0,72445.0,0.15535922]
[1730237462564,0.069027,72446.0,72445.0,0.08694681]
[1730237462765,0.03448361,72446.0,72445.0,0.08694681]
[1730237466774,0.06903,72444.0,72441.0,0.02347062]
[1730237466972,0.06903,72444.0,72440.0,0.07110432]
[1730237467266,0.3608,72447.0,72440.0,0.07110432]
[1730237467267,0.069031,72442.0,72440.0,0.07110432]
[1730237467471,0.069032,72441.0,72440.0,0.07110432]
[1730237468874,0.069032,72441.0,72440.0,0.09437508]
[1730237475763,0.069032,72441.0,72440.0,0.02534308]
[1730237477067,0.069032,72441.0,72440.0,0.13056175]
[1730237477563,0.069032,72441.0,72440.0,0.02534308]
[1730237479978,0.069032,72441.0,72440.0,0.09437508]
[1730237481768,0.069032,72441.0,72440.0,0.02534308]
[1730237484370,0.069032,72441.0,72440.0,0.00207232]
[1730237485471,0.069032,72441.0,72440.0,0.10729416]
[1730237485872,0.429832,72441.0,72440.0,0.10729416]
[1730237491380,0.429832,72441.0,72440.0,0.18938923]
[1730237491882,0.429832,72441.0,72440.0,0.18938972]
[1730237492578,0.429832,72441.0,72440.0,0.00207232]
[1730237499987,1.929832,72441.0,72440.0,0.00207232]
[1730237503293,2.01677881,72441.0,72440.0,0.00207232]
[1730237503488,1.962432,72441.0,72440.0,0.00207232]
[1730237503700,1.9858659,72441.0,72440.0,0.00207232]
[1730237506081,2.07281271,72441.0,72440.0,0.00207232]
[1730237506289,1.9858659,72441.0,72440.0,0.00207232]
[1730237513999,2.07281271,72441.0,72440.0,0.00207232]
[1730237514404,2.15975952,72441.0,72440.0,0.00207232]
[1730237519204,2.07281271,72441.0,72440.0,0.00207232]
[1730237520098,2.15975952,72441.0,72440.0,0.00207232]
[1730237525411,2.07281271,72441.0,72440.0,0.00207232]
[1730237526709,2.15975952,72441.0,72440.0,0.00207232]
[1730237528612,2.12715952,72441.0,72440.0,0.00207232]
[1730237529717,2.13094511,72441.0,72440.0,0.00207232]
[1730237533821,2.0439983,72441.0,72440.0,0.00207232]
[1730237534219,2.13094511,72441.0,72440.0,0.00207232]
[1730237534419,2.0439983,72441.0,72440.0,0.00207232]
[1730237534821,1.95705149,72441.0,72440.0,0.00207232]
[1730237536927,1.59625149,72441.0,72440.0,0.00207232]
[1730237537123,1.95705149,72441.0,72440.0,0.00207232]
[1730237545436,1.59625149,72441.0,72440.0,0.00207232]
[1730237545730,1.95705149,72441.0,72440.0,0.00207232]
[1730237548137,2.0439983,72441.0,72440.0,0.00207232]
[1730237548328,1.6831983,72441.0,72440.0,0.00207232]
[1730237548529,2.0439983,72441.0,72440.0,0.00207232]
[1730237556126,0.36458559,72441.0,72440.0,0.00207232]
[1730237556436,0.3608,72447.0,72440.0,0.41619232]
[1730237556637,0.3608,72447.0,72443.0,0.06903]
[1730237556944,1.50072,72453.0,72446.0,0.069027]
[1730237557139,0.00847097,72456.0,72455.0,0.069018]
[1730237557331,0.00207097,72456.0,72455.0,0.15596481]
[1730237557840,0.00207097,72456.0,72455.0,0.57000481]
[1730237558032,0.00207097,72456.0,72455.0,0.716047]
[1730237558431,1.50207097,72456.0,72455.0,0.716047]
[1730237559038,1.50207097,72456.0,72455.0,0.14604219]
[1730237559039,0.36287097,72456.0,72455.0,0.14604219]
[1730237559242,0.36287097,72456.0,72446.0,0.0032]
[1730237559243,0.069026,72447.0,72446.0,0.0032]
[1730237559436,0.069028,72445.0,72444.0,0.3608]
[1730237559935,0.069028,72445.0,72444.0,0.77492]
[1730237561042,0.069028,72445.0,72444.0,0.3608]
[1730237561243,0.069028,72445.0,72444.0,0.38446578]
[1730237562740,0.069028,72445.0,72444.0,0.43936925]
[1730237565047,0.069028,72445.0,72444.0,0.38446578]
[1730237565551,0.069028,72445.0,72444.0,0.02366578]
[1730237565739,0.069028,72445.0,72443.0,0.41570347]
[1730237565740,0.069028,72445.0,72443.0,0.41694347]
[1730237565938,0.069029,72444.0,72443.0,0.41570347]
[1730237567951,0.069029,72444.0,72443.0,0.43871278]
[1730237568135,0.069029,72444.0,72443.0,0.38380931]
[1730237571947,0.069029,72444.0,72443.0,0.3608]
[1730237574259,0.064029,72444.0,72443.0,0.3608]
[1730237575449,0.069028,72445.0,72442.0,0.3608]
[1730237575649,0.06903,72443.0,72442.0,0.3608]
[1730237575860,0.069028,72445.0,72442.0,0.3608]
[1730237576057,0.06903,72443.0,72442.0,0.3608]
[1730237577660,0.069032,72441.0,72440.0,0.02471159]
[1730237577961,0.069032,72441.0,72440.0,0.38551159]
[1730237579543,0.069032,72441.0,72440.0,0.45432259]
[1730237580955,0.069032,72441.0,72440.0,0.09352259]
[1730237581156,0.069032,72441.0,72440.0,0.38551159]
[1730237582265,0.069032,72441.0,72440.0,0.02471159]
[1730237582460,0.069032,72441.0,72440.0,0.38551159]
[1730237582656,0.069032,72441.0,72440.0,0.45432259]
[1730237583362,0.069032,72441.0,72440.0,0.38551159]
[1730237585267,0.069032,72441.0,72440.0,0.02471159]
[1730237585561,0.069032,72441.0,72440.0,0.38551159]
[1730237587765,0.069032,72441.0,72440.0,0.02471159]
[1730237587965,0.069032,72441.0,72440.0,0.38551159]
[1730237588267,0.069032,72441.0,72440.0,0.02471159]
[1730237588459,0.069032,72441.0,72440.0,0.38551159]
[1730237590366,0.069032,72441.0,72440.0,0.56404642]
[1730237591863,0.069032,72441.0,72440.0,0.20324642]
[1730237592171,0.069032,72441.0,72440.0,0.56404642]
[1730237592364,0.069032,72441.0,72440.0,0.48147322]
[1730237592561,0.069032,72441.0,72440.0,0.12067322]
[1730237592769,0.069032,72441.0,72440.0,0.48147322]
[1730237593460,0.069032,72441.0,72440.0,0.12067322]
[1730237593660,0.069032,72441.0,72440.0,0.48147322]
[1730237594264,0.0064,72451.0,72440.0,1.63056141]
[1730237594577,0.3608,72469.0,72461.0,0.069012]
[1730237594868,0.429805,72469.0,72468.0,0.069006]
[1730237595071,0.069005,72469.0,72468.0,0.15595281]
[1730237596364,0.069005,72469.0,72468.0,0.21089285]
[1730237596971,0.069001,72473.0,72468.0,0.08694681]
[1730237597171,0.069004,72470.0,72469.0,0.05493539]
[1730237598171,0.069004,72470.0,72469.0,0.00503539]
[1730237598562,0.15595081,72470.0,72464.0,0.0032]
[1730237598771,0.069011,72463.0,72462.0,0.06883177]
[1730237599177,1.569011,72463.0,72462.0,0.09148694]
[1730237600175,1.569011,72463.0,72462.0,0.02265517]
[1730237600377,1.5,72463.0,72461.0,0.3608]
[1730237600675,0.08297232,72462.0,72461.0,0.3608]
[1730237601567,0.08297232,72462.0,72461.0,0.38448215]
[1730237601768,0.11487232,72462.0,72461.0,0.38448215]
[1730237601971,0.11487232,72462.0,72461.0,0.02368215]
[1730237602168,0.069017,72456.0,72455.0,0.42963177]
[1730237602874,0.08297732,72456.0,72455.0,0.42963177]
[1730237603266,0.069019,72454.0,72453.0,0.00207009]
[1730237603966,0.49701932,72454.0,72448.0,0.08261376]
[1730237604275,0.15597081,72449.0,72448.0,0.08261376]
[1730237604469,0.20168292,72449.0,72448.0,0.08261376]
[1730237604865,0.069032,72441.0,72440.0,0.00207232]
[1730237605068,0.56249092,72441.0,72440.0,0.00207232]
[1730237605268,2.06249092,72441.0,72440.0,0.00207232]
[1730237605978,2.07645124,72441.0,72440.0,0.00207232]
[1730237610873,1.99345892,72441.0,72432.0,0.01903849]
[1730237611083,0.06904,72432.0,72431.0,0.00213925]
[1730237611979,0.06919645,72432.0,72431.0,0.00213925]
[1730237613576,0.06904,72432.0,72431.0,0.00213925]
[1730237616777,0.06917451,72432.0,72431.0,0.00213925]
[1730237616975,0.06904,72432.0,72431.0,0.00213925]
[1730237617182,0.42984,72432.0,72431.0,0.00213925]
[1730237619182,0.00016838,72432.0,72431.0,0.77341659]
[1730237619384,0.00016838,72432.0,72431.0,0.80581659]
[1730237622595,0.00016838,72432.0,72431.0,0.73677559]
[1730237623582,0.06920838,72432.0,72431.0,0.73677559]
[1730237623998,0.06920838,72432.0,72431.0,0.75954845]
[1730237624196,0.06920838,72432.0,72431.0,0.62688953]
[1730237624796,0.06920838,72432.0,72431.0,0.21268953]
[1730237626204,0.06920838,72432.0,72431.0,0.05731211]
[1730237627595,0.06920838,72432.0,72431.0,0.00213925]
[1730237628093,1.56920838,72432.0,72431.0,0.00213925]
[1730237628487,1.93000838,72432.0,72431.0,0.04345257]
[1730237628891,1.93000838,72432.0,72431.0,0.00213925]
[1730237629294,1.92984,72432.0,72431.0,0.00213925]
[1730237631892,1.929975,72432.0,72431.0,0.00213925]
[1730237632199,1.92984,72432.0,72431.0,0.00213925]
[1730237633902,1.95382408,72432.0,72431.0,0.00213925]
[1730237634995,1.95393817,72432.0,72431.0,0.00213925]
[1730237635196,1.95382408,72432.0,72431.0,0.00213925]
[1730237635402,1.95382408,72432.0,72431.0,0.04344399]
[1730237635708,1.95382408,72432.0,72431.0,0.00213925]
[1730237636003,1.95382408,72432.0,72431.0,0.04345246]
[1730237636186,1.95382408,72432.0,72431.0,0.00213925]
[1730237636386,1.95382408,72432.0,72431.0,0.04345075]
[1730237636589,1.95382408,72432.0,72431.0,0.04345126]
[1730237639193,1.95398985,72432.0,72431.0,0.04345126]
[1730237639388,1.95382408,72432.0,72431.0,0.04345126]
[1730237640194,1.59302408,72432.0,72431.0,0.04345126]
[1730237640594,1.95382408,72432.0,72431.0,0.04345126]
[1730237641100,1.95394246,72432.0,72431.0,0.04345126]
[1730237641295,1.59302408,72432.0,72431.0,0.04345126]
[1730237641808,1.95382408,72432.0,72431.0,0.04345126]
[1730237642295,1.95382408,72432.0,72431.0,0.00213925]
[1730237642899,1.95382408,72432.0,72431.0,0.04345126]
[1730237643292,1.95382408,72432.0,72431.0,0.00213925]
[1730237643507,1.59302408,72432.0,72431.0,0.00213925]
[1730237643711,1.95382408,72432.0,72431.0,0.00213925]
[1730237644504,2.04091186,72432.0,72431.0,0.00213925]
[1730237645401,2.04108262,72432.0,72431.0,0.00213925]
[1730237645709,2.04091186,72432.0,72431.0,0.00213925]
[1730237648708,2.04105954,72432.0,72431.0,0.00213925]
[1730237648907,2.04103088,72432.0,72431.0,0.00213925]
[1730237649108,2.04103942,72432.0,72431.0,0.00213925]
[1730237649316,2.04105642,72432.0,72431.0,0.00213925]
[1730237649500,2.04091186,72432.0,72431.0,0.00213925]
[1730237652000,1.68011186,72432.0,72431.0,0.00213925]
[1730237652201,2.04101186,72432.0,72431.0,0.00213925]
[1730237652517,2.04091186,72432.0,72431.0,0.00213925]
[1730237653816,2.04091186,72432.0,72427.0,2.1e-07]
[1730237653817,0.069044,72428.0,72427.0,2.1e-07]
[1730237654116,0.069049,72423.0,72420.0,0.0034392]
[1730237654303,0.51693878,72421.0,72420.0,0.0034392]
[1730237654615,2.01693878,72421.0,72420.0,0.0034392]
[1730237656113,2.01710782,72421.0,72420.0,0.0034392]
[1730237656417,2.01693878,72421.0,72420.0,0.0034392]
[1730237656903,2.01707849,72421.0,72420.0,0.0034392]
[1730237657103,2.01693878,72421.0,72420.0,0.0034392]
[1730237657712,2.04166029,72421.0,72420.0,0.0034392]
[1730237659620,1.95457251,72421.0,72420.0,0.0034392]
[1730237659918,2.04166029,72421.0,72420.0,0.0034392]
[1730237662723,2.0417691,72421.0,72420.0,0.0034392]
[1730237662930,2.04166029,72421.0,72420.0,0.0034392]
[1730237664237,0.069056,72415.0,72414.0,4.3e-07]
[1730237664430,0.3608,72415.0,72413.0,5.6e-07]
[1730237664636,0.15614478,72414.0,72413.0,5.6e-07]
[1730237664816,1.65614478,72414.0,72413.0,5.6e-07]
[1730237668330,1.74323256,72414.0,72413.0,5.6e-07]
[1730237671125,2.10403256,72414.0,72413.0,5.6e-07]
[1730237672149,1.74323256,72414.0,72413.0,5.6e-07]
[1730237672322,2.10416235,72414.0,72413.0,5.6e-07]
[1730237672517,2.10413575,72414.0,72413.0,5.6e-07]
[1730237672820,2.10403256,72414.0,72413.0,5.6e-07]
[1730237673732,2.01694478,72414.0,72413.0,5.6e-07]
[1730237673921,2.10403256,72414.0,72413.0,5.6e-07]
[1730237674120,2.01694478,72414.0,72413.0,5.6e-07]
[1730237674441,2.11190478,72414.0,72413.0,5.6e-07]
[1730237675436,2.11178478,72414.0,72413.0,5.6e-07]
[1730237677536,2.19887256,72414.0,72413.0,5.6e-07]
[1730237678126,2.19904332,72414.0,72413.0,5.6e-07]
[1730237678321,2.19887256,72414.0,72413.0,5.6e-07]
[1730237680728,2.61315256,72414.0,72413.0,5.6e-07]
[1730237683233,1.83807256,72414.0,72413.0,5.6e-07]
[1730237683433,2.19887256,72414.0,72413.0,5.6e-07]
[1730237688232,2.23292318,72414.0,72413.0,5.6e-07]
[1730237688440,2.64720318,72414.0,72413.0,5.6e-07]
[1730237690241,2.23292318,72414.0,72413.0,5.6e-07]
[1730237690740,2.59372318,72414.0,72413.0,5.6e-07]
[1730237690939,2.59386151,72414.0,72413.0,5.6e-07]
[1730237691131,2.59389394,72414.0,72413.0,5.6e-07]
[1730237691328,2.59372318,72414.0,72413.0,5.6e-07]
[1730237691533,2.59382483,72414.0,72413.0,5.6e-07]
[1730237691730,2.59382079,72414.0,72413.0,5.6e-07]
[1730237691936,2.59388407,72414.0,72413.0,5.6e-07]
[1730237692145,2.59372318,72414.0,72413.0,5.6e-07]
[1730237694146,0.069059,72412.0,72407.0,0.00403908]
[1730237694333,0.069063,72408.0,72407.0,0.00403908]
[1730237694640,0.46391362,72408.0,72407.0,0.00403908]
[1730237694834,1.96391362,72408.0,72407.0,0.00403908]
[1730237695941,0.069065,72406.0,72405.0,0.00177179]
[1730237696136,0.31970273,72406.0,72405.0,0.00177179]
[1730237696330,0.24324056,72406.0,72405.0,0.00177179]
[1730237696530,1.74324056,72406.0,72405.0,0.00177179]
[1730237697839,2.15756056,72406.0,72405.0,0.00177179]
[1730237698245,2.15756056,72406.0,72396.0,0.00408314]
[1730237698246,1.67417556,72406.0,72396.0,0.00408314]
[1730237698445,0.60404556,72401.0,72396.0,0.00408314]
[1730237698636,0.69888556,72401.0,72396.0,0.00408314]
[1730237699044,0.069072,72399.0,72396.0,0.00408314]
[1730237702442,0.06917901,72399.0,72396.0,0.00408314]
[1730237702639,0.069072,72399.0,72396.0,0.00408314]
[1730237705139,0.429872,72399.0,72396.0,0.00408314]
[1730237707644,0.5170946,72399.0,72396.0,0.00408314]
[1730237708147,0.60404756,72399.0,72396.0,0.00408314]
[1730237708348,0.60421608,72399.0,72396.0,0.00408314]
[1730237708552,0.60404756,72399.0,72396.0,0.00408314]
[1730237708754,0.60421832,72399.0,72396.0,0.00408314]
[1730237708941,0.60404756,72399.0,72396.0,0.00408314]
[1730237709241,0.69876756,72399.0,72396.0,0.00408314]
[1730237710640,0.069073,72397.0,72396.0,0.00408314]
[1730237710853,0.12092721,72397.0,72389.0,0.00232732]
[1730237711054,0.51696578,72392.0,72389.0,0.00232732]
[1730237711254,0.46371743,72392.0,72389.0,0.00232732]
[1730237711554,1.929878,72392.0,72389.0,0.00232732]
[1730237711754,2.01696578,72392.0,72391.0,2.4e-07]
[1730237711955,0.069088,72382.0,72381.0,0.0128]
[1730237712250,0.53497556,72382.0,72375.0,0.0020724]
[1730237712647,1.5,72381.0,72375.0,0.0020724]
[1730237712950,1.5,72381.0,72372.0,0.3608]
[1730237713153,1.569089,72381.0,72371.0,0.01721851]
[1730237713358,0.069091,72379.0,72371.0,0.01721851]
[1730237714555,0.60406956,72375.0,72371.0,0.00441851]
[1730237715241,0.60416632,72375.0,72371.0,0.00441851]
[1730237715452,0.60406956,72375.0,72371.0,0.00441851]
[1730237715651,0.3608,72375.0,72374.0,0.4193677]
[1730237715853,0.00016779,72375.0,72374.0,0.4193677]
[1730237716053,0.08708778,72377.0,72374.0,0.4193677]
[1730237716254,0.08708778,72377.0,72375.0,0.41452]
[1730237716754,0.0096,72387.0,72376.0,0.41452]
[1730237716942,0.08708778,72380.0,72374.0,0.32987819]
[1730237717256,0.0064,72387.0,72386.0,0.069084]
[1730237717449,0.00207279,72395.0,72385.0,0.3608]
[1730237717659,0.08708778,72391.0,72390.0,0.06908]
[1730237718556,0.1327588,72392.0,72390.0,0.06908]
[1730237718847,0.1327588,72392.0,72386.0,0.08843274]
[1730237719054,0.1327588,72392.0,72387.0,0.069083]
[1730237719453,0.1327588,72392.0,72387.0,0.12421574]
[1730237720762,0.2018408,72388.0,72387.0,0.05513274]
[1730237721057,0.1327588,72388.0,72383.0,0.0551179]
[1730237721258,0.1327588,72388.0,72375.0,0.0308]
[1730237721259,0.069088,72382.0,72381.0,0.0551179]
[1730237721442,0.2018488,72380.0,72375.0,0.0308]
[1730237722044,0.069092,72378.0,72375.0,0.05513114]
[1730237722252,0.069094,72375.0,72374.0,0.0048477]
[1730237722757,1.569094,72375.0,72374.0,0.0048477]
[1730237725354,1.929894,72375.0,72374.0,0.0048477]
[1730237725663,1.569094,72375.0,72374.0,0.0048477]
[1730237728759,1.929894,72375.0,72374.0,0.0048477]
[1730237730168,1.569094,72375.0,72374.0,0.0048477]
[1730237730464,1.929894,72375.0,72374.0,0.0048477]
[1730237734066,0.069095,72374.0,72373.0,0.00429289]
[1730237734266,0.2349538,72374.0,72373.0,0.00429289]
[1730237737372,0.5957538,72374.0,72373.0,0.00429289]
[1730237742678,0.63731218,72374.0,72373.0,0.00429289]
[1730237745774,0.66971218,72374.0,72373.0,0.00429289]
[1730237747200,0.41452,72373.0,72354.0,0.0050475]
[1730237747475,0.62227577,72365.0,72353.0,0.01023614]
[1730237747676,0.069118,72350.0,72349.0,0.00224522]
[1730237747881,0.163798,72350.0,72349.0,0.00224522]
[1730237748072,0.33811518,72350.0,72349.0,0.00224522]
[1730237749878,0.26899718,72350.0,72340.0,0.00483965]
[1730237750078,0.87788559,72341.0,72340.0,0.00483965]
[1730237750475,0.92360282,72341.0,72340.0,0.00483965]
[1730237750780,2.42360282,72341.0,72340.0,0.00483965]
[1730237754477,1.70200282,72341.0,72340.0,0.00483965]
[1730237754693,2.06280282,72341.0,72340.0,0.00483965]
[1730237754884,2.08745374,72341.0,72340.0,0.00483965]
[1730237757276,2.08745374,72341.0,72326.0,0.30718405]
[1730237757479,0.13287582,72334.0,72326.0,0.37632405]
[1730237758178,9.98e-05,72333.0,72326.0,0.37632405]
[1730237758480,0.069136,72332.0,72326.0,0.33175132]
[1730237758872,9.98e-05,72333.0,72326.0,0.33175132]
[1730237759078,0.069137,72331.0,72326.0,0.33175132]
[1730237759384,9.98e-05,72333.0,72326.0,0.33175132]
[1730237759882,0.069139,72329.0,72326.0,0.33175132]
[1730237760094,9.98e-05,72333.0,72326.0,0.40089232]
[1730237760279,0.069139,72328.0,72326.0,0.40089232]
[1730237760483,0.069136,72332.0,72329.0,0.069138]
[1730237760676,9.98e-05,72333.0,72330.0,0.41476]
[1730237760877,9.98e-05,72333.0,72332.0,0.3608]
[1730237760878,0.0692348,72333.0,72332.0,0.3608]
[1730237761080,9.98e-05,72333.0,72332.0,0.3608]
[1730237761275,9.98e-05,72333.0,72332.0,0.844696]
[1730237762787,9.98e-05,72333.0,72332.0,1.144696]
[1730237762990,9.98e-05,72333.0,72332.0,1.27757182]
[1730237763288,9.98e-05,72333.0,72332.0,1.42394793]
[1730237763895,9.98e-05,72333.0,72332.0,1.43518982]
[1730237764586,9.98e-05,72333.0,72332.0,1.42394793]
[1730237764782,9.98e-05,72333.0,72332.0,1.43518966]
[1730237765791,9.98e-05,72333.0,72332.0,1.42827167]
[1730237766391,0.0064,72340.0,72339.0,0.069129]
[1730237766597,0.069127,72341.0,72340.0,0.069128]
[1730237766796,0.069127,72341.0,72340.0,0.783848]
[1730237766998,0.069127,72341.0,72340.0,0.93227737]
[1730237767295,0.15691902,72349.0,72340.0,0.86314937]
[1730237767493,0.15691902,72349.0,72342.0,0.069125]
[1730237767687,0.15691902,72349.0,72345.0,0.3608]
[1730237767891,0.069122,72346.0,72345.0,0.3608]
[1730237768289,0.069122,72346.0,72345.0,0.77548]
[1730237770086,0.50327582,72354.0,72345.0,0.77548]
[1730237770087,0.0096,72354.0,72345.0,1.23216017]
[1730237770295,0.069111,72359.0,72352.0,0.3608]
[1730237770296,1.5096,72358.0,72352.0,0.3608]
[1730237770493,1.5,72358.0,72352.0,0.429916]
[1730237770795,0.069116,72353.0,72352.0,0.429916]
[1730237770996,1.5,72358.0,72352.0,0.429916]
[1730237770997,0.069113,72356.0,72354.0,0.069114]
[1730237771196,0.069115,72354.0,72352.0,0.90831582]
[1730237771395,1.5,72358.0,72352.0,0.90831582]
[1730237771793,0.069116,72353.0,72352.0,0.90831582]
[1730237772396,1.50076,72358.0,72352.0,0.90831582]
[1730237772590,0.069114,72355.0,72353.0,0.41464]
[1730237772898,1.5,72358.0,72354.0,0.14453168]
[1730237772899,1.50072,72358.0,72354.0,0.14453168]
[1730237773093,1.50072,72358.0,72354.0,0.55913168]
[1730237773094,1.5,72358.0,72354.0,0.55913168]
[1730237773295,0.069113,72356.0,72355.0,0.4146]
[1730237773601,0.13287582,72361.0,72356.0,0.14453168]
[1730237773894,1.5,72360.0,72352.0,0.45620232]
[1730237774099,0.069114,72355.0,72352.0,0.45472232]
[1730237774291,0.069114,72355.0,72353.0,0.155698]
[1730237774494,0.069114,72355.0,72353.0,0.570338]
[1730237774689,0.069114,72355.0,72354.0,0.41464]
[1730237775089,0.069114,72355.0,72354.0,0.57101098]
[1730237776497,1.5,72360.0,72354.0,0.57101098]
[1730237776498,1.50076,72360.0,72354.0,0.57101098]
[1730237776800,0.06911,72359.0,72358.0,0.3608]
[1730237777292,0.06911,72359.0,72358.0,0.7754]
[1730237778589,0.15627284,72359.0,72358.0,0.7754]
[1730237778803,1.50072,72360.0,72358.0,0.7754]
[1730237778994,1.5,72360.0,72358.0,0.3608]
[1730237780295,1.569109,72360.0,72358.0,0.3608]
[1730237780896,1.5,72360.0,72358.0,0.3608]
[1730237781800,1.5,72360.0,72359.0,0.06911]
[1730237782005,0.0301,72365.0,72358.0,0.44936284]
[1730237782306,0.0301,72365.0,72361.0,0.069108]
[1730237782500,1.5,72364.0,72361.0,0.069108]
[1730237782895,1.5,72364.0,72358.0,0.44936284]
[1730237783201,1.5,72364.0,72360.0,0.069108]
[1730237786207,1.5,72364.0,72358.0,0.44944284]
[1730237786397,1.5,72364.0,72362.0,0.08716284]
[1730237786702,1.5,72364.0,72363.0,0.069106]
[1730237787001,0.0301,72365.0,72362.0,0.08716284]
[1730237787207,0.0301,72365.0,72364.0,0.069105]
[1730237787802,0.0301,72365.0,72364.0,0.483665]
[1730237791103,0.0301,72365.0,72364.0,0.93162784]
[1730237791295,0.0301,72365.0,72364.0,1.07718523]
[1730237791603,0.0301,72365.0,72364.0,1.37718523]
[1730237791900,0.0301,72365.0,72364.0,1.38150724]
[1730237792100,0.0301,72365.0,72364.0,1.40650469]
[1730237792307,0.0304,72371.0,72370.0,0.069099]
[1730237792612,0.0304,72371.0,72370.0,0.66684709]
[1730237792913,0.0304,72371.0,72370.0,1.08136709]
[1730237793094,0.069096,72374.0,72370.0,0.69234809]
[1730237793296,0.0096,72381.0,72376.0,0.069094]
[1730237793609,0.3608,72388.0,72383.0,0.069087]
[1730237793610,0.0314,72387.0,72383.0,0.069087]
[1730237794001,0.0314,72387.0,72383.0,0.94073211]
[1730237794198,0.100483,72387.0,72383.0,0.94073211]
[1730237794403,0.0314,72387.0,72383.0,1.07347919]
[1730237798518,0.0314,72387.0,72383.0,1.09766914]
[1730237803421,0.0314,72387.0,72383.0,0.79766914]
[1730237803912,0.0314,72387.0,72386.0,0.069084]
[1730237804113,0.0314,72387.0,72386.0,0.429884]
[1730237804318,0.0314,72387.0,72386.0,0.99203549]
[1730237804917,0.03124812,72387.0,72386.0,0.99203549]
[1730237806420,0.078677,72393.0,72386.0,0.92295149]
[1730237806623,0.069077,72393.0,72392.0,0.20182508]
[1730237806812,0.429875,72397.0,72396.0,0.069074]
[1730237807017,0.429875,72397.0,72396.0,0.20182108]
[1730237808921,0.069075,72397.0,72396.0,0.20182108]
[1730237809123,0.069075,72397.0,72396.0,0.56262108]
[1730237809825,0.069075,72397.0,72396.0,0.20182108]
[1730237810022,0.069075,72397.0,72396.0,0.56262108]
[1730237811021,0.069075,72397.0,72396.0,0.20182108]
[1730237811429,0.069075,72397.0,72396.0,0.56262108]
[1730237813723,0.0329,72398.0,72396.0,0.49354708]
[1730237813927,0.0329,72398.0,72397.0,0.069073]
[1730237814421,0.0329,72398.0,72397.0,0.15618063]
[1730237816131,0.101973,72398.0,72397.0,0.15618063]
[1730237816530,0.101973,72398.0,72397.0,0.51698063]
[1730237817325,0.101973,72398.0,72397.0,0.15618063]
[1730237817525,0.101973,72398.0,72397.0,0.51698063]
[1730237821226,0.101973,72398.0,72397.0,0.15618063]
[1730237821427,0.0329,72398.0,72397.0,0.51698063]
[1730237821833,0.101973,72398.0,72397.0,0.51698063]
[1730237822336,0.101973,72398.0,72397.0,0.44790763]
[1730237822837,0.101973,72398.0,72397.0,0.3608]
[1730237831745,0.0329,72398.0,72397.0,0.58404076]
[1730237831950,0.0328,72402.0,72401.0,0.06907]
[1730237832256,0.0328,72402.0,72401.0,0.15617763]
[1730237833941,0.0302,72405.0,72404.0,0.069067]
[1730237839445,0.069069,72402.0,72400.0,0.06907]
[1730237839647,0.069069,72402.0,72401.0,0.12855315]
[1730237840239,0.069069,72402.0,72401.0,0.08710763]
[1730237841456,0.069069,72402.0,72401.0,0.12854704]
[1730237842449,0.069069,72402.0,72401.0,0.08710763]
[1730237842954,0.069069,72402.0,72401.0,0.12854467]
[1730237843846,0.069068,72403.0,72402.0,0.069068]
[1730237844046,0.069069,72402.0,72401.0,0.08710763]
[1730237850847,0.099266,72405.0,72403.0,0.069067]
[1730237851048,0.069067,72404.0,72403.0,0.041435]
[1730237851358,0.069069,72402.0,72401.0,0.08710763]
[1730237854054,0.069069,72402.0,72401.0,0.15617763]
[1730237868567,0.069069,72402.0,72401.0,0.08710763]
[1730237869458,0.069069,72402.0,72401.0,0.44790763]
[1730237870073,0.069069,72402.0,72401.0,0.08710763]
[1730237870374,0.069069,72402.0,72401.0,0.44790763]
[1730237877371,0.069069,72402.0,72401.0,0.51697763]
[1730237879682,0.069069,72402.0,72401.0,0.15617763]
[1730237885785,0.069069,72402.0,72401.0,0.51697763]
[1730237890788,0.069069,72402.0,72401.0,0.44790763]
[1730237893989,0.069069,72402.0,72401.0,0.08710763]
[1730237894290,0.069069,72402.0,72401.0,0.44790763]
[1730237894890,0.069069,72402.0,72401.0,0.08710763]
[1730237895094,0.069069,72402.0,72401.0,0.44790763]
[1730237895292,0.069069,72402.0,72401.0,0.08710763]
[1730237895492,0.069069,72402.0,72401.0,0.44790763]